[Event "Titled Tuesday Blitz June 27 Early 2023"]
[White "Lee, Qing Aun"]
[Black "Wang, Alexander J"]
[WhiteFideId "5804167"]
[BlackFideId "30955270"]
[WhiteElo "2627"]
[BlackElo "2312"]
[Result "1-0"]
[Round "1"]
[TimeControl "180+2"]
[Date "2023.06.27"]
[WhiteClock "0:00:50"]
[BlackClock "0:00:00"]
[Board "169"]

1. d4 {[%clk 0:03:00]}  d5 {[%clk 0:02:59]} 2. Nc3 {[%clk 0:03:00]}  e6 {[%clk 0:02:57]} 3. Bf4 {[%clk 0:03:00]}  a6 {[%clk 0:02:51]} 4. e3 {[%clk 0:02:59]}  Nf6 {[%clk 0:02:47]} 5. g4 {[%clk 0:02:59]}  h6 {[%clk 0:02:44]} 6. h4 {[%clk 0:02:53]}  c5 {[%clk 0:02:41]} 7. Bg2 {[%clk 0:02:53]}  Nc6 {[%clk 0:02:38]} 8. g5 {[%clk 0:02:52]}  hxg5 {[%clk 0:02:18]} 9. hxg5 {[%clk 0:02:51]}  Rxh1 {[%clk 0:02:15]} 10. Bxh1 {[%clk 0:02:52]}  Nd7 {[%clk 0:02:14]} 11. Qh5 {[%clk 0:02:46]}  g6 {[%clk 0:02:11]} 12. Qh8 {[%clk 0:02:46]}  cxd4 {[%clk 0:01:59]} 13. exd4 {[%clk 0:02:45]}  Qe7 {[%clk 0:01:48]} 14. O-O-O {[%clk 0:02:40]}  b5 {[%clk 0:01:46]} 15. Bxd5 {[%clk 0:01:51]}  Bb7 {[%clk 0:01:04]} 16. Ne4 {[%clk 0:01:43]}  exd5 {[%clk 0:00:31]} 17. Nd6+ {[%clk 0:01:41]}  Kd8 {[%clk 0:00:31]} 18. Nxb7+ {[%clk 0:01:41]}  Kc8 {[%clk 0:00:31]} 19. Nd6+ {[%clk 0:01:41]}  Kd8 {[%clk 0:00:31]} 20. Nf3 {[%clk 0:01:27]}  Nb6 {[%clk 0:00:15]} 21. Re1 {[%clk 0:01:21]}  Qxe1+ {[%clk 0:00:08]} 22. Nxe1 {[%clk 0:01:21]}  Kd7 {[%clk 0:00:08]} 23. Qh3+ {[%clk 0:01:04]}  Ke7 {[%clk 0:00:04]} 24. Qe3+ {[%clk 0:00:56]}  Kd7 {[%clk 0:00:00]} 25. Nxf7 {[%clk 0:00:50]} 1-0


[Site "https://www.chess.com"]

[Event "Titled Tuesday Blitz June 27 Early 2023"]
[White "Al-Tarboush, Ward"]
[Black "Silvestre, Christian"]
[WhiteFideId "7601450"]
[BlackFideId "30956269"]
[WhiteElo "2625"]
[BlackElo "2310"]
[Result "0-1"]
[Round "1"]
[TimeControl "180+2"]
[Date "2023.06.27"]
[WhiteClock "0:01:52"]
[BlackClock "0:00:12"]
[Board "171"]

1. e4 {[%clk 0:03:00]}  c6 {[%clk 0:02:59]} 2. Nf3 {[%clk 0:02:59]}  d5 {[%clk 0:02:59]} 3. Nc3 {[%clk 0:03:00]}  a6 {[%clk 0:02:59]} 4. d3 {[%clk 0:02:57]}  Bg4 {[%clk 0:02:58]} 5. Bf4 {[%clk 0:02:57]}  e6 {[%clk 0:02:56]} 6. Be2 {[%clk 0:02:56]}  Nf6 {[%clk 0:02:55]} 7. O-O {[%clk 0:02:56]}  Bb4 {[%clk 0:02:52]} 8. e5 {[%clk 0:02:55]}  Nfd7 {[%clk 0:02:51]} 9. h3 {[%clk 0:02:56]}  Bh5 {[%clk 0:02:49]} 10. g4 {[%clk 0:02:56]}  Bg6 {[%clk 0:02:49]} 11. a3 {[%clk 0:02:55]}  Ba5 {[%clk 0:02:47]} 12. b4 {[%clk 0:02:55]}  Bc7 {[%clk 0:02:47]} 13. d4 {[%clk 0:02:55]}  O-O {[%clk 0:02:40]} 14. Kg2 {[%clk 0:02:47]}  f6 {[%clk 0:02:39]} 15. Bg3 {[%clk 0:02:45]}  fxe5 {[%clk 0:02:39]} 16. dxe5 {[%clk 0:02:43]}  a5 {[%clk 0:02:23]} 17. Qd2 {[%clk 0:02:39]}  c5 {[%clk 0:02:20]} 18. Nb5 {[%clk 0:02:37]}  Nc6 {[%clk 0:02:12]} 19. Nxc7 {[%clk 0:02:36]}  Qxc7 {[%clk 0:02:12]} 20. b5 {[%clk 0:02:37]}  Ne7 {[%clk 0:02:08]} 21. c4 {[%clk 0:02:36]}  Be4 {[%clk 0:02:02]} 22. Qg5 {[%clk 0:02:33]}  Ng6 {[%clk 0:01:50]} 23. cxd5 {[%clk 0:02:33]}  Bxd5 {[%clk 0:01:50]} 24. Rac1 {[%clk 0:02:30]}  Ndxe5 {[%clk 0:01:36]} 25. Rc3 {[%clk 0:02:29]}  Nxf3 {[%clk 0:01:27]} 26. Bxf3 {[%clk 0:02:26]}  Rxf3 {[%clk 0:01:23]} 27. Rxf3 {[%clk 0:02:22]}  Qf7 {[%clk 0:01:18]} 28. Qe3 {[%clk 0:02:10]}  Rf8 {[%clk 0:01:13]} 29. Re1 {[%clk 0:02:11]}  Qxf3+ {[%clk 0:01:04]} 30. Qxf3 {[%clk 0:02:11]}  Rxf3 {[%clk 0:01:03]} 31. Kh2 {[%clk 0:02:12]}  b6 {[%clk 0:00:59]} 32. Bc7 {[%clk 0:02:11]}  Rxf2+ {[%clk 0:00:56]} 33. Kg1 {[%clk 0:02:12]}  Rg2+ {[%clk 0:00:56]} 34. Kf1 {[%clk 0:02:12]}  Nh4 {[%clk 0:00:53]} 35. Re3 {[%clk 0:02:08]}  Rb2 {[%clk 0:00:39]} 36. a4 {[%clk 0:02:08]}  Bb3 {[%clk 0:00:23]} 37. Bxb6 {[%clk 0:02:06]}  Bxa4 {[%clk 0:00:23]} 38. Bxc5 {[%clk 0:02:06]}  Bxb5+ {[%clk 0:00:23]} 39. Kg1 {[%clk 0:02:05]}  Bc4 {[%clk 0:00:20]} 40. Rg3 {[%clk 0:01:58]}  Bd5 {[%clk 0:00:19]} 41. Kf1 {[%clk 0:01:55]}  Nf3 {[%clk 0:00:19]} 42. Bf2 {[%clk 0:01:51]}  a4 {[%clk 0:00:18]} 43. Bd4 {[%clk 0:01:46]}  a3 {[%clk 0:00:16]} 44. Bxb2 {[%clk 0:01:43]}  axb2 {[%clk 0:00:17]} 45. Kf2 {[%clk 0:01:42]}  b1=Q {[%clk 0:00:17]} 46. Rg2 {[%clk 0:01:43]}  Qc2+ {[%clk 0:00:17]} 47. Kg3 {[%clk 0:01:44]}  Qxg2+ {[%clk 0:00:17]} 48. Kxg2 {[%clk 0:01:44]}  g5 {[%clk 0:00:18]} 49. Kg3 {[%clk 0:01:44]}  Nh4 {[%clk 0:00:18]} 50. Kh2 {[%clk 0:01:45]}  e5 {[%clk 0:00:19]} 51. Kg3 {[%clk 0:01:45]}  Bf7 {[%clk 0:00:19]} 52. Kf2 {[%clk 0:01:45]}  Bg6 {[%clk 0:00:20]} 53. Ke3 {[%clk 0:01:46]}  Kf7 {[%clk 0:00:21]} 54. Kf2 {[%clk 0:01:46]}  Ke6 {[%clk 0:00:21]} 55. Ke3 {[%clk 0:01:46]}  Kd5 {[%clk 0:00:22]} 56. Kd2 {[%clk 0:01:46]}  Kd4 {[%clk 0:00:23]} 57. Ke2 {[%clk 0:01:47]}  Ke4 {[%clk 0:00:24]} 58. Kf2 {[%clk 0:01:47]}  Kf4 {[%clk 0:00:25]} 59. Kg1 {[%clk 0:01:48]}  Kg3 {[%clk 0:00:26]} 60. Kh1 {[%clk 0:01:48]}  Kxh3 {[%clk 0:00:25]} 61. Kg1 {[%clk 0:01:49]}  Kxg4 {[%clk 0:00:26]} 62. Kh2 {[%clk 0:01:49]}  Kf5 {[%clk 0:00:27]} 63. Kg3 {[%clk 0:01:49]}  Ke6 {[%clk 0:00:28]} 64. Kg4 {[%clk 0:01:49]}  h6 {[%clk 0:00:29]} 65. Kg3 {[%clk 0:01:49]}  Kd7 {[%clk 0:00:29]} 66. Kg4 {[%clk 0:01:50]}  Kc7 {[%clk 0:00:30]} 67. Kg3 {[%clk 0:01:50]}  Kb6 {[%clk 0:00:31]} 68. Kg4 {[%clk 0:01:50]}  Kc5 {[%clk 0:00:32]} 69. Kg3 {[%clk 0:01:51]}  Be8 {[%clk 0:00:33]} 70. Kg4 {[%clk 0:01:51]}  Kd4 {[%clk 0:00:34]} 71. Kg3 {[%clk 0:01:51]}  Bd7 {[%clk 0:00:32]} 72. Kf2 {[%clk 0:01:51]}  e4 {[%clk 0:00:32]} 73. Kg3 {[%clk 0:01:51]}  e3 {[%clk 0:00:31]} 74. Kh2 {[%clk 0:01:52]}  e2 {[%clk 0:00:30]} 75. Kg3 {[%clk 0:01:52]}  e1=Q+ {[%clk 0:00:29]} 76. Kh2 {[%clk 0:01:52]}  Qf2+ {[%clk 0:00:29]} 77. Kh1 {[%clk 0:01:52]}  Bc6# {[%clk 0:00:12]} 0-1


[Site "https://www.chess.com"]

[Event "Titled Tuesday Blitz June 27 Early 2023"]
[White "Jia, Haoxiang"]
[Black "Blokhin, Sofia"]
[WhiteFideId "8602999"]
[BlackFideId "4508190"]
[WhiteElo "2621"]
[BlackElo "2305"]
[Result "1-0"]
[Round "1"]
[TimeControl "180+2"]
[Date "2023.06.27"]
[WhiteClock "0:00:12"]
[BlackClock "0:00:03"]
[Board "175"]

1. e4 {[%clk 0:02:54]}  c5 {[%clk 0:02:57]} 2. Nc3 {[%clk 0:02:53]}  e6 {[%clk 0:02:57]} 3. g3 {[%clk 0:02:52]}  Nc6 {[%clk 0:02:54]} 4. Bg2 {[%clk 0:02:52]}  g6 {[%clk 0:02:54]} 5. Nge2 {[%clk 0:02:50]}  Bg7 {[%clk 0:02:54]} 6. d3 {[%clk 0:02:50]}  Nge7 {[%clk 0:02:53]} 7. Be3 {[%clk 0:02:45]}  Nd4 {[%clk 0:02:48]} 8. Qd2 {[%clk 0:02:41]}  O-O {[%clk 0:02:45]} 9. O-O {[%clk 0:02:37]}  d5 {[%clk 0:02:38]} 10. Rab1 {[%clk 0:02:02]}  b6 {[%clk 0:02:14]} 11. Bh6 {[%clk 0:01:56]}  Bxh6 {[%clk 0:02:09]} 12. Qxh6 {[%clk 0:01:56]}  Bb7 {[%clk 0:02:02]} 13. exd5 {[%clk 0:01:42]}  Nxe2+ {[%clk 0:01:55]} 14. Nxe2 {[%clk 0:01:41]}  exd5 {[%clk 0:01:54]} 15. Rfe1 {[%clk 0:01:40]}  Nf5 {[%clk 0:01:54]} 16. Qd2 {[%clk 0:01:39]}  Qf6 {[%clk 0:01:48]} 17. Nf4 {[%clk 0:01:38]}  Rad8 {[%clk 0:01:33]} 18. c4 {[%clk 0:01:36]}  Nd4 {[%clk 0:01:02]} 19. b4 {[%clk 0:01:02]}  cxb4 {[%clk 0:00:51]} 20. cxd5 {[%clk 0:00:57]}  g5 {[%clk 0:00:40]} 21. Nh5 {[%clk 0:00:52]}  Qg6 {[%clk 0:00:29]} 22. Rxb4 {[%clk 0:00:51]}  Nf5 {[%clk 0:00:18]} 23. Rg4 {[%clk 0:00:43]}  h6 {[%clk 0:00:15]} 24. Nf4 {[%clk 0:00:41]}  Qd6 {[%clk 0:00:14]} 25. Be4 {[%clk 0:00:38]}  Ng7 {[%clk 0:00:13]} 26. Ng2 {[%clk 0:00:16]}  f5 {[%clk 0:00:13]} 27. Bxf5 {[%clk 0:00:15]}  Rxf5 {[%clk 0:00:11]} 28. Rd4 {[%clk 0:00:14]}  Bxd5 {[%clk 0:00:11]} 29. Ne3 {[%clk 0:00:14]}  Re5 {[%clk 0:00:10]} 30. Rc1 {[%clk 0:00:13]}  Qe6 {[%clk 0:00:08]} 31. Rc7 {[%clk 0:00:11]}  Ba8 {[%clk 0:00:08]} 32. Rxd8+ {[%clk 0:00:11]}  Kh7 {[%clk 0:00:06]} 33. Rxa8 {[%clk 0:00:11]}  Qd6 {[%clk 0:00:05]} 34. Raxa7 {[%clk 0:00:11]}  Qf6 {[%clk 0:00:02]} 35. Rxg7+ {[%clk 0:00:11]}  Qxg7 {[%clk 0:00:03]} 36. Rxg7+ {[%clk 0:00:11]}  Kxg7 {[%clk 0:00:03]} 37. Qc3 {[%clk 0:00:12]} 1-0


[Site "https://www.chess.com"]

[Event "Titled Tuesday Blitz June 27 Early 2023"]
[White "Biriukov, Ilja"]
[Black "Aldokhin, Ivan"]
[WhiteFideId "4113373"]
[BlackFideId "24115720"]
[WhiteElo "2304"]
[BlackElo "2620"]
[Result "0-1"]
[Round "1"]
[TimeControl "180+2"]
[Date "2023.06.27"]
[WhiteClock "0:00:32"]
[BlackClock "0:00:45"]
[Board "176"]

1. c4 {[%clk 0:02:58]}  Nf6 {[%clk 0:02:58]} 2. Nc3 {[%clk 0:02:57]}  g6 {[%clk 0:02:59]} 3. g3 {[%clk 0:02:56]}  Bg7 {[%clk 0:02:59]} 4. Bg2 {[%clk 0:02:56]}  O-O {[%clk 0:02:59]} 5. d3 {[%clk 0:02:56]}  c6 {[%clk 0:02:58]} 6. Nf3 {[%clk 0:02:54]}  d5 {[%clk 0:02:59]} 7. O-O {[%clk 0:02:52]}  dxc4 {[%clk 0:02:43]} 8. dxc4 {[%clk 0:02:51]}  Be6 {[%clk 0:02:44]} 9. Nd2 {[%clk 0:02:46]}  a5 {[%clk 0:02:40]} 10. Qc2 {[%clk 0:02:45]}  Na6 {[%clk 0:02:39]} 11. a3 {[%clk 0:02:41]}  Qc8 {[%clk 0:02:38]} 12. Rb1 {[%clk 0:02:39]}  Bh3 {[%clk 0:02:32]} 13. b4 {[%clk 0:02:34]}  axb4 {[%clk 0:02:31]} 14. axb4 {[%clk 0:02:34]}  h5 {[%clk 0:02:30]} 15. c5 {[%clk 0:02:18]}  Bxg2 {[%clk 0:02:18]} 16. Kxg2 {[%clk 0:02:17]}  h4 {[%clk 0:02:19]} 17. Nc4 {[%clk 0:02:13]}  Qe6 {[%clk 0:02:18]} 18. Nb6 {[%clk 0:02:09]}  Rad8 {[%clk 0:02:18]} 19. Be3 {[%clk 0:01:50]}  Ng4 {[%clk 0:02:08]} 20. Bd2 {[%clk 0:01:43]}  Nc7 {[%clk 0:01:50]} 21. Ne4 {[%clk 0:01:33]}  Nb5 {[%clk 0:01:07]} 22. e3 {[%clk 0:01:18]}  Na3 {[%clk 0:00:52]} 23. Qc1 {[%clk 0:00:41]}  Qxe4+ {[%clk 0:00:47]} 24. f3 {[%clk 0:00:39]}  Qxb1 {[%clk 0:00:46]} 25. Qxa3 {[%clk 0:00:32]}  Rxd2+ {[%clk 0:00:45]} 0-1


[Site "https://www.chess.com"]

[Event "Titled Tuesday Blitz June 27 Early 2023"]
[White "rikchessmx"]
[Black "Karaev, Seit-Amet"]
[BlackFideId "4169549"]
[WhiteElo "2296"]
[BlackElo "2619"]
[Result "0-1"]
[Round "1"]
[TimeControl "180+2"]
[Date "2023.06.27"]
[WhiteClock "0:00:45"]
[BlackClock "0:01:16"]
[Board "178"]

1. e4 {[%clk 0:02:58]}  Nf6 {[%clk 0:02:32]} 2. Nc3 {[%clk 0:02:57]}  d5 {[%clk 0:02:31]} 3. exd5 {[%clk 0:02:58]}  Nxd5 {[%clk 0:02:30]} 4. Bc4 {[%clk 0:02:58]}  c6 {[%clk 0:02:29]} 5. Qf3 {[%clk 0:02:57]}  e6 {[%clk 0:02:29]} 6. Nge2 {[%clk 0:02:55]}  g6 {[%clk 0:02:28]} 7. O-O {[%clk 0:02:49]}  Bg7 {[%clk 0:02:28]} 8. d4 {[%clk 0:02:48]}  O-O {[%clk 0:02:28]} 9. Rd1 {[%clk 0:02:41]}  Nd7 {[%clk 0:02:27]} 10. Ne4 {[%clk 0:02:35]}  h6 {[%clk 0:02:25]} 11. Bb3 {[%clk 0:02:33]}  b5 {[%clk 0:02:22]} 12. a4 {[%clk 0:02:32]}  Bb7 {[%clk 0:02:18]} 13. Nd6 {[%clk 0:02:27]}  Qc7 {[%clk 0:02:11]} 14. Nxb7 {[%clk 0:02:18]}  Qxb7 {[%clk 0:02:12]} 15. axb5 {[%clk 0:02:16]}  cxb5 {[%clk 0:02:12]} 16. Nc3 {[%clk 0:02:14]}  N7f6 {[%clk 0:02:08]} 17. Ne4 {[%clk 0:02:11]}  Nxe4 {[%clk 0:02:05]} 18. Qxe4 {[%clk 0:02:10]}  Rad8 {[%clk 0:02:05]} 19. Bd2 {[%clk 0:01:59]}  a6 {[%clk 0:02:02]} 20. Ba5 {[%clk 0:01:56]}  Rd7 {[%clk 0:02:02]} 21. Qf3 {[%clk 0:01:36]}  b4 {[%clk 0:01:56]} 22. Ba4 {[%clk 0:01:32]}  Rd6 {[%clk 0:01:52]} 23. c4 {[%clk 0:01:30]}  bxc3 {[%clk 0:01:52]} 24. bxc3 {[%clk 0:01:30]}  Qc8 {[%clk 0:01:49]} 25. Rdc1 {[%clk 0:01:16]}  Qc4 {[%clk 0:01:46]} 26. Qd1 {[%clk 0:01:11]}  Rc8 {[%clk 0:01:36]} 27. Bb3 {[%clk 0:01:07]}  Qc6 {[%clk 0:01:36]} 28. c4 {[%clk 0:01:04]}  Nf4 {[%clk 0:01:35]} 29. d5 {[%clk 0:00:59]}  exd5 {[%clk 0:01:21]} 30. cxd5 {[%clk 0:00:58]}  Qxc1 {[%clk 0:01:20]} 31. Rxc1 {[%clk 0:00:55]}  Rxc1 {[%clk 0:01:19]} 32. Bb4 {[%clk 0:00:50]}  Rxd1+ {[%clk 0:01:18]} 33. Bxd1 {[%clk 0:00:45]}  Rxd5 {[%clk 0:01:16]} 0-1


[Site "https://www.chess.com"]

[Event "Titled Tuesday Blitz June 27 Early 2023"]
[White "Kaidanov, Gregory"]
[Black "Zaksaite, Salomeja"]
[WhiteFideId "2008564"]
[BlackFideId "12801496"]
[WhiteElo "2619"]
[BlackElo "2294"]
[Result "1-0"]
[Round "1"]
[TimeControl "180+2"]
[Date "2023.06.27"]
[WhiteClock "0:00:45"]
[BlackClock "0:00:00"]
[Board "179"]

1. d4 {[%clk 0:03:00]}  Nf6 {[%clk 0:02:59]} 2. c4 {[%clk 0:02:59]}  g6 {[%clk 0:03:00]} 3. Nc3 {[%clk 0:02:59]}  Bg7 {[%clk 0:03:00]} 4. e4 {[%clk 0:02:59]}  d6 {[%clk 0:03:00]} 5. Be2 {[%clk 0:03:00]}  O-O {[%clk 0:03:00]} 6. Bg5 {[%clk 0:03:00]}  c5 {[%clk 0:03:00]} 7. d5 {[%clk 0:03:00]}  e6 {[%clk 0:03:00]} 8. Qd2 {[%clk 0:02:59]}  exd5 {[%clk 0:03:00]} 9. exd5 {[%clk 0:03:00]}  Qb6 {[%clk 0:02:55]} 10. Nf3 {[%clk 0:02:58]}  Bf5 {[%clk 0:02:54]} 11. Nh4 {[%clk 0:02:58]}  Ne4 {[%clk 0:02:51]} 12. Nxe4 {[%clk 0:02:58]}  Bxe4 {[%clk 0:02:51]} 13. f3 {[%clk 0:02:48]}  h6 {[%clk 0:02:50]} 14. Bxh6 {[%clk 0:02:42]}  Bxh6 {[%clk 0:02:46]} 15. Qxh6 {[%clk 0:02:42]}  Qxb2 {[%clk 0:02:42]} 16. Rc1 {[%clk 0:02:41]}  Re8 {[%clk 0:01:22]} 17. fxe4 {[%clk 0:02:37]}  Rxe4 {[%clk 0:01:20]} 18. O-O {[%clk 0:02:19]}  Qd4+ {[%clk 0:01:14]} 19. Kh1 {[%clk 0:02:14]}  Rxh4 {[%clk 0:01:10]} 20. Qg5 {[%clk 0:02:14]}  Nd7 {[%clk 0:01:00]} 21. Qe7 {[%clk 0:01:39]}  Ne5 {[%clk 0:00:38]} 22. Rcd1 {[%clk 0:01:05]}  Qe4 {[%clk 0:00:32]} 23. Qxb7 {[%clk 0:00:53]}  Re8 {[%clk 0:00:20]} 24. Rf2 {[%clk 0:00:49]}  Kg7 {[%clk 0:00:19]} 25. Rdf1 {[%clk 0:00:48]}  Rxh2+ {[%clk 0:00:12]} 26. Kxh2 {[%clk 0:00:47]}  Rh8+ {[%clk 0:00:11]} 27. Kg1 {[%clk 0:00:47]}  Rf8 {[%clk 0:00:00]} 28. Qb2 {[%clk 0:00:45]} 1-0


[Site "https://www.chess.com"]

[Event "Titled Tuesday Blitz June 27 Early 2023"]
[White "Mohamed Anees M"]
[Black "Antonio, Jorge Carlos"]
[WhiteFideId "35065815"]
[BlackFideId "113190"]
[WhiteElo "2617"]
[BlackElo "2278"]
[Result "0-1"]
[Round "1"]
[TimeControl "180+2"]
[Date "2023.06.27"]
[WhiteClock "0:00:00"]
[BlackClock "0:00:36"]
[Board "181"]

1. d4 {[%clk 0:03:00]}  d5 {[%clk 0:02:59]} 2. c4 {[%clk 0:03:00]}  c6 {[%clk 0:02:59]} 3. Nf3 {[%clk 0:02:59]}  dxc4 {[%clk 0:02:59]} 4. a4 {[%clk 0:02:58]}  Nf6 {[%clk 0:02:54]} 5. e3 {[%clk 0:02:56]}  Be6 {[%clk 0:02:49]} 6. Nbd2 {[%clk 0:02:42]}  Na6 {[%clk 0:02:40]} 7. Nxc4 {[%clk 0:02:40]}  Bd5 {[%clk 0:02:35]} 8. Be2 {[%clk 0:02:36]}  e6 {[%clk 0:02:31]} 9. O-O {[%clk 0:02:33]}  Bd6 {[%clk 0:02:26]} 10. Nfe5 {[%clk 0:02:31]}  Be7 {[%clk 0:02:22]} 11. f3 {[%clk 0:02:31]}  O-O {[%clk 0:02:15]} 12. e4 {[%clk 0:02:24]}  Bxc4 {[%clk 0:02:15]} 13. Bxc4 {[%clk 0:02:19]}  Nb4 {[%clk 0:02:11]} 14. Be3 {[%clk 0:02:16]}  c5 {[%clk 0:02:07]} 15. a5 {[%clk 0:01:47]}  cxd4 {[%clk 0:02:02]} 16. Bxd4 {[%clk 0:01:47]}  Nc2 {[%clk 0:01:56]} 17. Bc3 {[%clk 0:01:37]}  Nxa1 {[%clk 0:01:54]} 18. Qxa1 {[%clk 0:01:38]}  Qc7 {[%clk 0:01:48]} 19. Bd3 {[%clk 0:01:19]}  Rfd8 {[%clk 0:01:46]} 20. Bb1 {[%clk 0:01:09]}  Bd6 {[%clk 0:01:45]} 21. f4 {[%clk 0:01:09]}  Qc5+ {[%clk 0:01:40]} 22. Kh1 {[%clk 0:01:08]}  Bxe5 {[%clk 0:01:39]} 23. fxe5 {[%clk 0:01:04]}  Ng4 {[%clk 0:01:38]} 24. h3 {[%clk 0:01:05]}  Nf2+ {[%clk 0:01:36]} 25. Kh2 {[%clk 0:01:04]}  Nd3 {[%clk 0:01:31]} 26. Ba2 {[%clk 0:00:33]}  Qe3 {[%clk 0:01:28]} 27. Rf3 {[%clk 0:00:31]}  Qxe4 {[%clk 0:01:28]} 28. Bb1 {[%clk 0:00:28]}  Qc4 {[%clk 0:01:12]} 29. Rg3 {[%clk 0:00:26]}  g6 {[%clk 0:01:09]} 30. Ba2 {[%clk 0:00:26]}  Qf4 {[%clk 0:01:06]} 31. b3 {[%clk 0:00:23]}  Nf2 {[%clk 0:01:02]} 32. Qf1 {[%clk 0:00:17]}  Rd3 {[%clk 0:00:48]} 33. Be1 {[%clk 0:00:11]}  Qxg3+ {[%clk 0:00:46]} 34. Kg1 {[%clk 0:00:11]}  Nxh3+ {[%clk 0:00:45]} 35. Kh1 {[%clk 0:00:12]}  Rd1 {[%clk 0:00:36]} 36. Bxg3 {[%clk 0:00:09]}  Rxf1+ {[%clk 0:00:36]} 37. Kh2 {[%clk 0:00:00]}  Ng5 {[%clk 0:00:36]} 0-1


[Site "https://www.chess.com"]

[Event "Titled Tuesday Blitz June 27 Early 2023"]
[White "Elgersma, Onno"]
[Black "Zaichenko, Daria"]
[WhiteFideId "1053531"]
[BlackFideId "4197453"]
[WhiteElo "2615"]
[BlackElo "2268"]
[Result "1-0"]
[Round "1"]
[TimeControl "180+2"]
[Date "2023.06.27"]
[WhiteClock "0:01:40"]
[BlackClock "0:00:43"]
[Board "183"]

1. Nf3 {[%clk 0:02:59]}  d5 {[%clk 0:02:54]} 2. b3 {[%clk 0:02:57]}  c5 {[%clk 0:02:46]} 3. Bb2 {[%clk 0:02:57]}  Nc6 {[%clk 0:02:43]} 4. e3 {[%clk 0:02:56]}  Nf6 {[%clk 0:02:40]} 5. Bb5 {[%clk 0:02:56]}  Bd7 {[%clk 0:02:36]} 6. O-O {[%clk 0:02:56]}  Rc8 {[%clk 0:02:35]} 7. d3 {[%clk 0:02:55]}  a6 {[%clk 0:02:35]} 8. Bxc6 {[%clk 0:02:55]}  Bxc6 {[%clk 0:02:35]} 9. Ne5 {[%clk 0:02:56]}  e6 {[%clk 0:02:34]} 10. Nd2 {[%clk 0:02:55]}  Bd6 {[%clk 0:02:34]} 11. a4 {[%clk 0:02:55]}  O-O {[%clk 0:02:33]} 12. a5 {[%clk 0:02:55]}  Qc7 {[%clk 0:02:30]} 13. f4 {[%clk 0:02:50]}  Nd7 {[%clk 0:02:30]} 14. Nxc6 {[%clk 0:02:50]}  Qxc6 {[%clk 0:02:28]} 15. Qf3 {[%clk 0:02:49]}  e5 {[%clk 0:02:28]} 16. f5 {[%clk 0:02:47]}  Rce8 {[%clk 0:02:18]} 17. e4 {[%clk 0:02:47]}  f6 {[%clk 0:01:56]} 18. exd5 {[%clk 0:02:46]}  Qc7 {[%clk 0:01:56]} 19. Ne4 {[%clk 0:02:40]}  Rf7 {[%clk 0:01:47]} 20. g4 {[%clk 0:02:38]}  Nf8 {[%clk 0:01:43]} 21. h4 {[%clk 0:02:36]}  Be7 {[%clk 0:01:40]} 22. Bc1 {[%clk 0:02:26]}  Qd7 {[%clk 0:01:39]} 23. Be3 {[%clk 0:02:26]}  Rc8 {[%clk 0:01:31]} 24. Kg2 {[%clk 0:02:22]}  Kh8 {[%clk 0:01:29]} 25. c4 {[%clk 0:02:20]}  g6 {[%clk 0:01:20]} 26. h5 {[%clk 0:02:11]}  g5 {[%clk 0:01:19]} 27. h6 {[%clk 0:02:10]}  Qe8 {[%clk 0:01:17]} 28. d6 {[%clk 0:02:03]}  Bd8 {[%clk 0:01:16]} 29. Bxc5 {[%clk 0:02:03]}  Nd7 {[%clk 0:01:14]} 30. Be3 {[%clk 0:02:01]}  Qf8 {[%clk 0:01:14]} 31. c5 {[%clk 0:01:59]}  Qxh6 {[%clk 0:01:12]} 32. Rh1 {[%clk 0:01:59]}  Qg7 {[%clk 0:01:12]} 33. b4 {[%clk 0:01:59]}  Nb8 {[%clk 0:01:11]} 34. Bd2 {[%clk 0:01:55]}  Nc6 {[%clk 0:01:11]} 35. Bc3 {[%clk 0:01:56]}  Nd4 {[%clk 0:01:10]} 36. Bxd4 {[%clk 0:01:56]}  exd4 {[%clk 0:01:10]} 37. Nd2 {[%clk 0:01:51]}  Rf8 {[%clk 0:01:04]} 38. Nb3 {[%clk 0:01:51]}  Re8 {[%clk 0:01:04]} 39. Nxd4 {[%clk 0:01:52]}  Qf7 {[%clk 0:01:02]} 40. Ne6 {[%clk 0:01:46]}  Rxe6 {[%clk 0:00:57]} 41. fxe6 {[%clk 0:01:47]}  Qxe6 {[%clk 0:00:57]} 42. Qe4 {[%clk 0:01:47]}  Qf7 {[%clk 0:00:47]} 43. Rxh7+ {[%clk 0:01:44]}  Qxh7 {[%clk 0:00:46]} 44. Rh1 {[%clk 0:01:45]}  Qxh1+ {[%clk 0:00:45]} 45. Kxh1 {[%clk 0:01:46]}  Kg7 {[%clk 0:00:43]} 46. Qxb7+ {[%clk 0:01:40]} 1-0


[Site "https://www.chess.com"]